[Event "Titled Tuesday Blitz February 28 Late 2023"]
[White "Girsh, Daniel"]
[Black "Alikhanov, Felix"]
[WhiteFideId "30949190"]
[BlackFideId "4157427"]
[WhiteElo "2075"]
[BlackElo "2425"]
[Result "0-1"]
[Round "08"]
[TimeControl "180+2"]
[Date "2023.02.28"]
[WhiteClock "0:00:23"]
[BlackClock "0:00:19"]

1. e4 {[%clk 0:03:00]}  e6 {[%clk 0:02:59]} 2. d4 {[%clk 0:03:00]}  d5 {[%clk 0:03:00]} 3. e5 {[%clk 0:03:00]}  c5 {[%clk 0:03:00]} 4. c3 {[%clk 0:03:01]}  Nc6 {[%clk 0:03:00]} 5. Nf3 {[%clk 0:03:01]}  Qb6 {[%clk 0:03:01]} 6. Bd3 {[%clk 0:02:59]}  cxd4 {[%clk 0:03:01]} 7. O-O {[%clk 0:02:59]}  Bd7 {[%clk 0:03:01]} 8. Re1 {[%clk 0:02:58]}  Nge7 {[%clk 0:03:00]} 9. h4 {[%clk 0:02:56]}  h5 {[%clk 0:02:56]} 10. Nbd2 {[%clk 0:02:55]}  Nf5 {[%clk 0:02:55]} 11. Nb3 {[%clk 0:02:51]}  dxc3 {[%clk 0:02:54]} 12. bxc3 {[%clk 0:02:52]}  g6 {[%clk 0:02:52]} 13. a4 {[%clk 0:02:49]}  Be7 {[%clk 0:02:50]} 14. a5 {[%clk 0:02:49]}  Qd8 {[%clk 0:02:51]} 15. Ba3 {[%clk 0:02:46]}  Bxa3 {[%clk 0:02:49]} 16. Rxa3 {[%clk 0:02:46]}  Nxh4 {[%clk 0:02:49]} 17. Nfd4 {[%clk 0:02:45]}  Nf5 {[%clk 0:02:37]} 18. Bxf5 {[%clk 0:02:38]}  gxf5 {[%clk 0:02:36]} 19. Nc5 {[%clk 0:02:35]}  Qe7 {[%clk 0:02:27]} 20. Nxb7 {[%clk 0:02:33]}  Qxa3 {[%clk 0:02:26]} 21. Nd6+ {[%clk 0:02:33]}  Kf8 {[%clk 0:02:14]} 22. N4xf5 {[%clk 0:02:20]}  Qxc3 {[%clk 0:02:00]} 23. Re3 {[%clk 0:02:20]}  Qxa5 {[%clk 0:01:44]} 24. Nc4 {[%clk 0:01:44]}  Qc5 {[%clk 0:01:28]} 25. Nfd6 {[%clk 0:01:43]}  Rh7 {[%clk 0:01:02]} 26. Qb1 {[%clk 0:01:23]}  Rg7 {[%clk 0:00:54]} 27. Rf3 {[%clk 0:01:17]}  dxc4 {[%clk 0:00:37]} 28. Qb7 {[%clk 0:00:46]}  Rd8 {[%clk 0:00:31]} 29. Qc7 {[%clk 0:00:42]}  Qxe5 {[%clk 0:00:27]} 30. Re3 {[%clk 0:00:37]}  Qd5 {[%clk 0:00:24]} 31. Kh2 {[%clk 0:00:30]}  Be8 {[%clk 0:00:21]} 32. Ne4 {[%clk 0:00:27]}  Qe5+ {[%clk 0:00:19]} 33. Qxe5 {[%clk 0:00:25]}  Nxe5 {[%clk 0:00:20]} 34. Nf6 {[%clk 0:00:24]}  Ng4+ {[%clk 0:00:20]} 35. Nxg4 {[%clk 0:00:24]}  hxg4 {[%clk 0:00:21]} 36. f3 {[%clk 0:00:25]}  g3+ {[%clk 0:00:21]} 37. Kh3 {[%clk 0:00:25]}  Rd5 {[%clk 0:00:21]} 38. Re4 {[%clk 0:00:23]}  Rh5+ {[%clk 0:00:21]} 39. Rh4 {[%clk 0:00:23]}  Rxh4+ {[%clk 0:00:22]} 40. Kxh4 {[%clk 0:00:24]}  c3 {[%clk 0:00:21]} 41. f4 {[%clk 0:00:24]}  c2 {[%clk 0:00:21]} 42. f5 {[%clk 0:00:25]}  exf5 {[%clk 0:00:21]} 43. Kh5 {[%clk 0:00:22]}  f6+ {[%clk 0:00:20]} 44. Kh6 {[%clk 0:00:23]}  c1=Q# {[%clk 0:00:19]} 0-1


[Site "https://www.chess.com"]

[Event "Titled Tuesday Blitz February 28 Late 2023"]
[White "Plotkin, Victor"]
[Black "Diaz Perez, Michel Alejandro"]
[WhiteFideId "2606674"]
[BlackFideId "3517179"]
[WhiteElo "2214"]
[BlackElo "2333"]
[Result "1-0"]
[Round "08"]
[TimeControl "180+2"]
[Date "2023.02.28"]
[WhiteClock "0:00:40"]
[BlackClock "0:00:07"]

1. e4 {[%clk 0:03:00]}  d5 {[%clk 0:02:59]} 2. exd5 {[%clk 0:03:00]}  Nf6 {[%clk 0:03:00]} 3. d4 {[%clk 0:03:00]}  Bg4 {[%clk 0:02:58]} 4. Be2 {[%clk 0:02:59]}  Bxe2 {[%clk 0:02:58]} 5. Qxe2 {[%clk 0:02:59]}  Qxd5 {[%clk 0:02:58]} 6. Nf3 {[%clk 0:02:57]}  e6 {[%clk 0:02:56]} 7. Nc3 {[%clk 0:02:56]}  Bb4 {[%clk 0:02:55]} 8. Bd2 {[%clk 0:02:56]}  Bxc3 {[%clk 0:02:55]} 9. Bxc3 {[%clk 0:02:56]}  Nbd7 {[%clk 0:02:54]} 10. O-O {[%clk 0:02:52]}  O-O {[%clk 0:02:54]} 11. b3 {[%clk 0:02:42]}  Qe4 {[%clk 0:02:47]} 12. Qxe4 {[%clk 0:02:40]}  Nxe4 {[%clk 0:02:48]} 13. Bb2 {[%clk 0:02:39]}  Rfd8 {[%clk 0:02:44]} 14. Rfe1 {[%clk 0:02:39]}  Nd6 {[%clk 0:02:42]} 15. c4 {[%clk 0:02:34]}  Nf6 {[%clk 0:02:40]} 16. Rad1 {[%clk 0:02:32]}  c6 {[%clk 0:02:38]} 17. Kf1 {[%clk 0:02:31]}  a5 {[%clk 0:02:35]} 18. d5 {[%clk 0:02:27]}  cxd5 {[%clk 0:02:34]} 19. Bxf6 {[%clk 0:02:27]}  gxf6 {[%clk 0:02:32]} 20. cxd5 {[%clk 0:02:28]}  e5 {[%clk 0:02:33]} 21. Nd2 {[%clk 0:02:16]}  Rac8 {[%clk 0:02:30]} 22. Rc1 {[%clk 0:02:07]}  Rxc1 {[%clk 0:01:56]} 23. Rxc1 {[%clk 0:02:02]}  Nf5 {[%clk 0:01:57]} 24. Ne4 {[%clk 0:01:48]}  Kg7 {[%clk 0:01:57]} 25. d6 {[%clk 0:01:34]}  Nd4 {[%clk 0:01:47]} 26. Rc7 {[%clk 0:01:29]}  Nb5 {[%clk 0:01:10]} 27. Rxb7 {[%clk 0:01:23]}  Nxd6 {[%clk 0:01:11]} 28. Nxd6 {[%clk 0:01:23]}  Rxd6 {[%clk 0:01:12]} 29. Ke2 {[%clk 0:01:20]}  Rc6 {[%clk 0:00:56]} 30. Kd3 {[%clk 0:01:07]}  Rc5 {[%clk 0:00:51]} 31. a4 {[%clk 0:01:03]}  Rd5+ {[%clk 0:00:47]} 32. Ke3 {[%clk 0:01:02]}  Rc5 {[%clk 0:00:40]} 33. Rb5 {[%clk 0:01:00]}  Rc3+ {[%clk 0:00:33]} 34. Kd2 {[%clk 0:00:59]}  Rc6 {[%clk 0:00:29]} 35. Rxa5 {[%clk 0:00:58]}  Kg6 {[%clk 0:00:30]} 36. Rb5 {[%clk 0:00:54]}  Kf5 {[%clk 0:00:31]} 37. a5 {[%clk 0:00:55]}  Ke4 {[%clk 0:00:31]} 38. Rb6 {[%clk 0:00:51]}  Rc5 {[%clk 0:00:31]} 39. b4 {[%clk 0:00:48]}  Rd5+ {[%clk 0:00:26]} 40. Kc2 {[%clk 0:00:47]}  f5 {[%clk 0:00:20]} 41. a6 {[%clk 0:00:46]}  Rd8 {[%clk 0:00:21]} 42. a7 {[%clk 0:00:44]}  Ra8 {[%clk 0:00:21]} 43. Rb7 {[%clk 0:00:44]}  Kd5 {[%clk 0:00:21]} 44. b5 {[%clk 0:00:42]}  Kc5 {[%clk 0:00:21]} 45. b6 {[%clk 0:00:41]}  Kc6 {[%clk 0:00:07]} 46. Rb8 {[%clk 0:00:40]} 1-0


[Site "https://www.chess.com"]

[Event "Titled Tuesday Blitz February 28 Late 2023"]
[White "Ramirez Allo, Eduardo"]
[Black "Fiorito, Joaquin"]
[WhiteFideId "2224178"]
[BlackFideId "180173"]
[WhiteElo "2466"]
[BlackElo "2157"]
[Result "1-0"]
[Round "08"]
[TimeControl "180+2"]
[Date "2023.02.28"]
[WhiteClock "0:00:33"]
[BlackClock "0:01:03"]

1. d4 {[%clk 0:03:00]}  Nf6 {[%clk 0:03:00]} 2. Nf3 {[%clk 0:03:00]}  d5 {[%clk 0:02:59]} 3. c4 {[%clk 0:03:00]}  e6 {[%clk 0:03:00]} 4. g3 {[%clk 0:02:59]}  dxc4 {[%clk 0:03:00]} 5. Bg2 {[%clk 0:02:59]}  c5 {[%clk 0:03:01]} 6. O-O {[%clk 0:02:58]}  Nc6 {[%clk 0:03:01]} 7. Qa4 {[%clk 0:02:58]}  Bd7 {[%clk 0:03:01]} 8. Qxc4 {[%clk 0:02:58]}  b5 {[%clk 0:03:01]} 9. Qd3 {[%clk 0:02:59]}  c4 {[%clk 0:03:01]} 10. Qc2 {[%clk 0:02:57]}  Rc8 {[%clk 0:03:02]} 11. a3 {[%clk 0:02:50]}  Be7 {[%clk 0:02:46]} 12. Nc3 {[%clk 0:02:46]}  Na5 {[%clk 0:02:44]} 13. Bf4 {[%clk 0:02:34]}  Nb3 {[%clk 0:02:43]} 14. Rad1 {[%clk 0:02:32]}  Bc6 {[%clk 0:02:39]} 15. e4 {[%clk 0:02:23]}  Qa5 {[%clk 0:02:27]} 16. d5 {[%clk 0:02:19]}  Bd7 {[%clk 0:02:27]} 17. Ne5 {[%clk 0:02:17]}  Nc5 {[%clk 0:02:22]} 18. Nxd7 {[%clk 0:02:15]}  Nfxd7 {[%clk 0:02:23]} 19. dxe6 {[%clk 0:02:10]}  Nxe6 {[%clk 0:02:24]} 20. Nd5 {[%clk 0:01:46]}  Nxf4 {[%clk 0:02:23]} 21. Nxe7 {[%clk 0:01:42]}  Kxe7 {[%clk 0:02:23]} 22. gxf4 {[%clk 0:01:41]}  Rcd8 {[%clk 0:02:24]} 23. Rd5 {[%clk 0:01:22]}  Rhe8 {[%clk 0:02:14]} 24. Rfd1 {[%clk 0:01:21]}  Nb6 {[%clk 0:02:14]} 25. R5d4 {[%clk 0:01:10]}  Qa4 {[%clk 0:02:07]} 26. Qd2 {[%clk 0:01:03]}  Rxd4 {[%clk 0:01:55]} 27. Qxd4 {[%clk 0:01:04]}  Kf8 {[%clk 0:01:55]} 28. e5 {[%clk 0:01:00]}  Qb3 {[%clk 0:01:51]} 29. Rd2 {[%clk 0:00:57]}  c3 {[%clk 0:01:25]} 30. bxc3 {[%clk 0:00:51]}  Nc4 {[%clk 0:01:25]} 31. Rd1 {[%clk 0:00:46]}  Qxa3 {[%clk 0:01:17]} 32. Bc6 {[%clk 0:00:43]}  Rb8 {[%clk 0:01:07]} 33. Qd8+ {[%clk 0:00:31]}  Rxd8 {[%clk 0:01:03]} 34. Rxd8+ {[%clk 0:00:32]}  Ke7 {[%clk 0:01:03]} 35. Re8# {[%clk 0:00:33]} 1-0


[Site "https://www.chess.com"]

[Event "Titled Tuesday Blitz February 28 Late 2023"]
[White "Wartiovaara, Oliver"]
[Black "Haydon, David L"]
[WhiteFideId "513024"]
[BlackFideId "415405"]
[WhiteElo "2214"]
[BlackElo "2326"]
[Result "0-1"]
[Round "08"]
[TimeControl "180+2"]
[Date "2023.02.28"]
[WhiteClock "0:00:01"]
[BlackClock "0:01:18"]

1. d4 {[%clk 0:03:00]}  c6 {[%clk 0:03:00]} 2. Nc3 {[%clk 0:02:55]}  d5 {[%clk 0:03:01]} 3. Bf4 {[%clk 0:02:53]}  Bf5 {[%clk 0:03:01]} 4. e3 {[%clk 0:02:52]}  Nf6 {[%clk 0:03:00]} 5. Nf3 {[%clk 0:02:50]}  e6 {[%clk 0:02:59]} 6. Ne5 {[%clk 0:02:50]}  Bd6 {[%clk 0:02:59]} 7. g4 {[%clk 0:02:49]}  Bxe5 {[%clk 0:02:51]} 8. dxe5 {[%clk 0:02:47]}  Nxg4 {[%clk 0:02:49]} 9. h3 {[%clk 0:02:35]}  Nh6 {[%clk 0:02:49]} 10. Bxh6 {[%clk 0:02:19]}  gxh6 {[%clk 0:02:47]} 11. Qd2 {[%clk 0:01:55]}  Nd7 {[%clk 0:02:45]} 12. f4 {[%clk 0:01:49]}  Qh4+ {[%clk 0:02:44]} 13. Kd1 {[%clk 0:01:45]}  O-O-O {[%clk 0:02:41]} 14. Ne2 {[%clk 0:01:40]}  Nc5 {[%clk 0:02:37]} 15. Nd4 {[%clk 0:01:38]}  Ne4 {[%clk 0:02:37]} 16. Qe1 {[%clk 0:01:35]}  Bg4+ {[%clk 0:02:24]} 17. Be2 {[%clk 0:01:24]}  Bxe2+ {[%clk 0:02:22]} 18. Kxe2 {[%clk 0:01:25]}  Qxe1+ {[%clk 0:02:15]} 19. Rhxe1 {[%clk 0:01:23]}  Rhg8 {[%clk 0:02:14]} 20. Rg1 {[%clk 0:01:22]}  Rg6 {[%clk 0:02:13]} 21. Nf3 {[%clk 0:01:05]}  Rdg8 {[%clk 0:02:11]} 22. Rxg6 {[%clk 0:00:56]}  Rxg6 {[%clk 0:02:07]} 23. Rg1 {[%clk 0:00:56]}  Kd7 {[%clk 0:02:06]} 24. Rg4 {[%clk 0:00:49]}  h5 {[%clk 0:02:04]} 25. Rxg6 {[%clk 0:00:37]}  hxg6 {[%clk 0:02:02]} 26. Ng5 {[%clk 0:00:27]}  Nxg5 {[%clk 0:01:57]} 27. fxg5 {[%clk 0:00:28]}  c5 {[%clk 0:01:56]} 28. Kd3 {[%clk 0:00:27]}  Kc6 {[%clk 0:01:55]} 29. a3 {[%clk 0:00:16]}  Kb5 {[%clk 0:01:49]} 30. b3 {[%clk 0:00:15]}  c4+ {[%clk 0:01:45]} 31. Kd4 {[%clk 0:00:13]}  a5 {[%clk 0:01:38]} 32. Kc3 {[%clk 0:00:05]}  Kc5 {[%clk 0:01:31]} 33. a4 {[%clk 0:00:01]}  cxb3 {[%clk 0:01:18]} 34. cxb3 {[%clk 0:00:01]}  b5 {[%clk 0:01:18]} 0-1


[Site "https://www.chess.com"]

[Event "Titled Tuesday Blitz February 28 Late 2023"]
[White "Jovic, Stanoje"]
[Black "benny_aizenberg"]
[WhiteFideId "905020"]
[WhiteElo "2236"]
[BlackElo "2589"]
[Result "1-0"]
[Round "08"]
[TimeControl "180+2"]
[Date "2023.02.28"]
[WhiteClock "0:00:01"]
[BlackClock "0:00:01"]

1. c4 {[%clk 0:03:00]}  f5 {[%clk 0:02:59]} 2. g3 {[%clk 0:03:00]}  Nf6 {[%clk 0:03:00]} 3. Bg2 {[%clk 0:03:01]}  g6 {[%clk 0:03:00]} 4. Nc3 {[%clk 0:02:59]}  Bg7 {[%clk 0:03:00]} 5. d3 {[%clk 0:02:59]}  O-O {[%clk 0:03:00]} 6. e4 {[%clk 0:02:59]}  d6 {[%clk 0:02:57]} 7. exf5 {[%clk 0:03:00]}  gxf5 {[%clk 0:02:58]} 8. h4 {[%clk 0:02:57]}  e5 {[%clk 0:02:58]} 9. h5 {[%clk 0:02:57]}  Nc6 {[%clk 0:02:56]} 10. h6 {[%clk 0:02:57]}  Bh8 {[%clk 0:02:56]} 11. Bg5 {[%clk 0:02:56]}  Be6 {[%clk 0:02:48]} 12. Nd5 {[%clk 0:02:53]}  Qd7 {[%clk 0:02:42]} 13. Ne2 {[%clk 0:02:52]}  Bxd5 {[%clk 0:02:39]} 14. Bxd5+ {[%clk 0:02:48]}  Nxd5 {[%clk 0:02:38]} 15. cxd5 {[%clk 0:02:49]}  Nb4 {[%clk 0:02:32]} 16. Qb3 {[%clk 0:02:41]}  Qb5 {[%clk 0:02:32]} 17. Nc1 {[%clk 0:02:24]}  Qxd5 {[%clk 0:02:24]} 18. Qxd5+ {[%clk 0:02:11]}  Nxd5 {[%clk 0:02:24]} 19. Ne2 {[%clk 0:01:57]}  Nb4 {[%clk 0:02:01]} 20. Kd2 {[%clk 0:01:53]}  e4 {[%clk 0:02:01]} 21. d4 {[%clk 0:01:35]}  c5 {[%clk 0:02:01]} 22. Be7 {[%clk 0:01:28]}  Rfc8 {[%clk 0:01:57]} 23. Bxd6 {[%clk 0:01:25]}  Nd3 {[%clk 0:01:57]} 24. dxc5 {[%clk 0:01:18]}  Nxb2 {[%clk 0:01:57]} 25. Rac1 {[%clk 0:01:12]}  Rc6 {[%clk 0:01:48]} 26. Rh5 {[%clk 0:01:09]}  Nd3 {[%clk 0:01:31]} 27. Rc4 {[%clk 0:01:04]}  Rd8 {[%clk 0:01:27]} 28. Rg5+ {[%clk 0:01:01]}  Kf7 {[%clk 0:01:27]} 29. Rxf5+ {[%clk 0:01:01]}  Ke6 {[%clk 0:01:25]} 30. g4 {[%clk 0:00:47]}  Nxc5 {[%clk 0:01:09]} 31. Rcxc5 {[%clk 0:00:41]}  Rcxd6+ {[%clk 0:01:07]} 32. Ke3 {[%clk 0:00:41]}  Ke7 {[%clk 0:00:35]} 33. Nf4 {[%clk 0:00:35]}  Bd4+ {[%clk 0:00:34]} 34. Kxe4 {[%clk 0:00:32]}  Bxc5 {[%clk 0:00:33]} 35. Rxc5 {[%clk 0:00:31]}  Rxh6 {[%clk 0:00:33]} 36. Rc7+ {[%clk 0:00:29]}  Rd7 {[%clk 0:00:33]} 37. Rc8 {[%clk 0:00:20]}  Ra6 {[%clk 0:00:28]} 38. Nd5+ {[%clk 0:00:18]}  Kd6 {[%clk 0:00:26]} 39. Nf6 {[%clk 0:00:15]}  Rf7 {[%clk 0:00:21]} 40. g5 {[%clk 0:00:15]}  Rxa2 {[%clk 0:00:20]} 41. f4 {[%clk 0:00:15]}  a5 {[%clk 0:00:18]} 42. Rh8 {[%clk 0:00:12]}  Rh2 {[%clk 0:00:16]} 43. Ra8 {[%clk 0:00:08]}  b6 {[%clk 0:00:16]} 44. Ra6 {[%clk 0:00:05]}  Kc5 {[%clk 0:00:16]} 45. Ke5 {[%clk 0:00:05]}  Re7+ {[%clk 0:00:15]} 46. Kf5 {[%clk 0:00:04]}  Kb5 {[%clk 0:00:10]} 47. Ra8 {[%clk 0:00:04]}  a4 {[%clk 0:00:10]} 48. Nd5 {[%clk 0:00:04]}  Re1 {[%clk 0:00:05]} 49. Nc3+ {[%clk 0:00:04]}  Kb4 {[%clk 0:00:05]} 50. Nxa4 {[%clk 0:00:04]}  b5 {[%clk 0:00:05]} 51. Nb6 {[%clk 0:00:04]}  Rc2 {[%clk 0:00:03]} 52. Nd5+ {[%clk 0:00:03]}  Kb3 {[%clk 0:00:02]} 53. Rb8 {[%clk 0:00:02]}  Rc5 {[%clk 0:00:03]} 54. Kf6 {[%clk 0:00:02]}  Rxd5 {[%clk 0:00:02]} 55. Kg7 {[%clk 0:00:01]}  Rf5 {[%clk 0:00:02]} 56. Kxh7 {[%clk 0:00:01]}  Rxf4 {[%clk 0:00:02]} 57. Rxb5+ {[%clk 0:00:01]}  Kc4 {[%clk 0:00:03]} 58. Ra5 {[%clk 0:00:01]}  Re7+ {[%clk 0:00:02]} 59. Kh6 {[%clk 0:00:01]}  Rh4+ {[%clk 0:00:01]} 60. Kg6 {[%clk 0:00:01]}  Re6+ {[%clk 0:00:01]} 61. Kf5 {[%clk 0:00:01]} 1-0


[Site "https://www.chess.com"]

[Event "Titled Tuesday Blitz February 28 Late 2023"]
[White "Bulgurlu, Okan"]
[Black "Karttunen, Mika"]
[WhiteFideId "6352316"]
[BlackFideId "502081"]
[WhiteElo "2351"]
[BlackElo "2396"]
[Result "1/2-1/2"]
[Round "08"]
[TimeControl "180+2"]
[Date "2023.02.28"]
[WhiteClock "0:00:03"]
[BlackClock "0:00:06"]

1. e4 {[%clk 0:02:56]}  e6 {[%clk 0:02:59]} 2. Nf3 {[%clk 0:02:53]}  d5 {[%clk 0:02:59]} 3. d3 {[%clk 0:02:54]}  Nf6 {[%clk 0:02:55]} 4. Nbd2 {[%clk 0:02:49]}  c5 {[%clk 0:02:52]} 5. g3 {[%clk 0:02:49]}  Nc6 {[%clk 0:02:53]} 6. Bg2 {[%clk 0:02:49]}  Be7 {[%clk 0:02:52]} 7. O-O {[%clk 0:02:48]}  O-O {[%clk 0:02:52]} 8. c3 {[%clk 0:02:41]}  b5 {[%clk 0:02:50]} 9. a4 {[%clk 0:02:39]}  b4 {[%clk 0:02:48]} 10. exd5 {[%clk 0:02:40]}  exd5 {[%clk 0:02:48]} 11. Re1 {[%clk 0:02:36]}  Bf5 {[%clk 0:02:28]} 12. d4 {[%clk 0:02:05]}  bxc3 {[%clk 0:02:17]} 13. bxc3 {[%clk 0:02:03]}  cxd4 {[%clk 0:02:14]} 14. Nxd4 {[%clk 0:01:55]}  Nxd4 {[%clk 0:02:07]} 15. cxd4 {[%clk 0:01:56]}  Rc8 {[%clk 0:01:51]} 16. Rxe7 {[%clk 0:01:36]}  Qxe7 {[%clk 0:01:19]} 17. Ba3 {[%clk 0:01:35]}  Qd8 {[%clk 0:01:04]} 18. Bxf8 {[%clk 0:01:33]}  Qxf8 {[%clk 0:01:05]} 19. Rc1 {[%clk 0:00:31]}  Rxc1 {[%clk 0:00:45]} 20. Qxc1 {[%clk 0:00:32]}  Qb4 {[%clk 0:00:45]} 21. g4 {[%clk 0:00:19]}  Bxg4 {[%clk 0:00:42]} 22. Qb1 {[%clk 0:00:19]}  Qxb1+ {[%clk 0:00:18]} 23. Nxb1 {[%clk 0:00:20]}  Kf8 {[%clk 0:00:17]} 24. Nc3 {[%clk 0:00:20]}  Be6 {[%clk 0:00:17]} 25. a5 {[%clk 0:00:21]}  a6 {[%clk 0:00:08]} 26. Bf1 {[%clk 0:00:21]}  Bc8 {[%clk 0:00:07]} 27. Na4 {[%clk 0:00:20]}  Nd7 {[%clk 0:00:05]} 28. Bg2 {[%clk 0:00:20]}  Bb7 {[%clk 0:00:04]} 29. Bh3 {[%clk 0:00:16]}  Ke7 {[%clk 0:00:03]} 30. Bxd7 {[%clk 0:00:15]}  Kxd7 {[%clk 0:00:03]} 31. Nc5+ {[%clk 0:00:15]}  Kc7 {[%clk 0:00:04]} 32. Kg2 {[%clk 0:00:14]}  Bc8 {[%clk 0:00:04]} 33. Kf3 {[%clk 0:00:14]}  Kc6 {[%clk 0:00:05]} 34. Kf4 {[%clk 0:00:14]}  f6 {[%clk 0:00:05]} 35. Ke3 {[%clk 0:00:07]}  Kb5 {[%clk 0:00:06]} 36. Kd3 {[%clk 0:00:04]}  Kxa5 {[%clk 0:00:06]} 37. Kc3 {[%clk 0:00:05]}  Kb5 {[%clk 0:00:06]} 38. Nd3 {[%clk 0:00:05]}  a5 {[%clk 0:00:06]} 39. Nf4 {[%clk 0:00:05]}  Kc6 {[%clk 0:00:06]} 40. Kb3 {[%clk 0:00:05]}  g6 {[%clk 0:00:06]} 41. Ka4 {[%clk 0:00:05]}  Kb6 {[%clk 0:00:03]} 42. Nxd5+ {[%clk 0:00:05]}  Kc6 {[%clk 0:00:03]} 43. Nxf6 {[%clk 0:00:04]}  Kd6 {[%clk 0:00:04]} 44. Nxh7 {[%clk 0:00:03]}  Kd5 {[%clk 0:00:03]} 45. Kxa5 {[%clk 0:00:03]}  Kxd4 {[%clk 0:00:03]} 46. Kb6 {[%clk 0:00:03]}  Ke4 {[%clk 0:00:03]} 47. Nf8 {[%clk 0:00:03]}  Bf5 {[%clk 0:00:03]} 48. Kc7 {[%clk 0:00:03]}  Kf3 {[%clk 0:00:03]} 49. Kd6 {[%clk 0:00:04]}  Kxf2 {[%clk 0:00:04]} 50. Ke5 {[%clk 0:00:04]}  Kg2 {[%clk 0:00:05]} 51. h4 {[%clk 0:00:03]}  Kh3 {[%clk 0:00:05]} 52. Kf6 {[%clk 0:00:04]}  Kxh4 {[%clk 0:00:06]} 53. Nxg6+ {[%clk 0:00:03]} 1/2-1/2


[Site "https://www.chess.com"]

[Event "Titled Tuesday Blitz February 28 Late 2023"]
[White "Gadimbayli, Abdulla"]
[Black "Petukhov, Dmitry"]
[WhiteFideId "13404938"]
[BlackFideId "4142748"]
[WhiteElo "2390"]
[BlackElo "2311"]
[Result "1/2-1/2"]
[Round "08"]
[TimeControl "180+2"]
[Date "2023.02.28"]
[WhiteClock "0:00:26"]
[BlackClock "0:00:26"]

1. Nf3 {[%clk 0:01:32]}  Nf6 {[%clk 0:02:59]} 2. g3 {[%clk 0:01:33]}  g6 {[%clk 0:02:59]} 3. Bg2 {[%clk 0:01:34]}  Bg7 {[%clk 0:03:00]} 4. O-O {[%clk 0:01:34]}  O-O {[%clk 0:03:01]} 5. d4 {[%clk 0:01:35]}  d5 {[%clk 0:03:01]} 6. c4 {[%clk 0:01:36]}  c6 {[%clk 0:03:02]} 7. cxd5 {[%clk 0:01:37]}  cxd5 {[%clk 0:03:03]} 8. Nc3 {[%clk 0:01:38]}  Ne4 {[%clk 0:03:03]} 9. Nxe4 {[%clk 0:01:38]}  dxe4 {[%clk 0:03:04]} 10. Nd2 {[%clk 0:01:39]}  Bxd4 {[%clk 0:02:55]} 11. Nxe4 {[%clk 0:01:38]}  Nc6 {[%clk 0:02:52]} 12. Qb3 {[%clk 0:01:30]}  Qb6 {[%clk 0:02:49]} 13. Qxb6 {[%clk 0:01:26]}  axb6 {[%clk 0:02:44]} 14. Bh6 {[%clk 0:01:21]}  Rd8 {[%clk 0:02:42]} 15. Nc3 {[%clk 0:01:08]}  Be6 {[%clk 0:02:08]} 16. Rfd1 {[%clk 0:00:57]}  Ne5 {[%clk 0:01:59]} 17. h3 {[%clk 0:00:52]}  Nc4 {[%clk 0:01:54]} 18. e3 {[%clk 0:00:46]}  Bf6 {[%clk 0:01:48]} 19. Bxb7 {[%clk 0:00:45]}  Rab8 {[%clk 0:01:45]} 20. Ne4 {[%clk 0:00:32]}  Bxb2 {[%clk 0:01:43]} 21. Rab1 {[%clk 0:00:32]}  Bg7 {[%clk 0:01:20]} 22. Rxd8+ {[%clk 0:00:22]}  Rxd8 {[%clk 0:01:19]} 23. Bxg7 {[%clk 0:00:22]}  Kxg7 {[%clk 0:01:20]} 24. Ng5 {[%clk 0:00:19]}  Bd5 {[%clk 0:01:16]} 25. Bxd5 {[%clk 0:00:17]}  Rxd5 {[%clk 0:01:17]} 26. Ne4 {[%clk 0:00:18]}  Ra5 {[%clk 0:01:13]} 27. Rb4 {[%clk 0:00:17]}  b5 {[%clk 0:01:04]} 28. Nc3 {[%clk 0:00:16]}  Nd6 {[%clk 0:01:04]} 29. a4 {[%clk 0:00:12]}  bxa4 {[%clk 0:01:01]} 30. Nxa4 {[%clk 0:00:13]}  h5 {[%clk 0:00:50]} 31. Kg2 {[%clk 0:00:12]}  g5 {[%clk 0:00:47]} 32. Nc3 {[%clk 0:00:10]}  e6 {[%clk 0:00:46]} 33. Rb6 {[%clk 0:00:07]}  Nc4 {[%clk 0:00:39]} 34. Rc6 {[%clk 0:00:07]}  Ne5 {[%clk 0:00:39]} 35. Rc7 {[%clk 0:00:07]}  Kg6 {[%clk 0:00:37]} 36. Ne4 {[%clk 0:00:06]}  f5 {[%clk 0:00:36]} 37. Nc3 {[%clk 0:00:05]}  g4 {[%clk 0:00:36]} 38. hxg4 {[%clk 0:00:05]}  hxg4 {[%clk 0:00:37]} 39. Ne2 {[%clk 0:00:06]}  Kf6 {[%clk 0:00:33]} 40. Nd4 {[%clk 0:00:06]}  Ra6 {[%clk 0:00:29]} 41. Rh7 {[%clk 0:00:06]}  Nd3 {[%clk 0:00:26]} 42. Rh6+ {[%clk 0:00:06]}  Kf7 {[%clk 0:00:25]} 43. Rh7+ {[%clk 0:00:04]}  Kg6 {[%clk 0:00:25]} 44. Re7 {[%clk 0:00:04]}  Kf6 {[%clk 0:00:25]} 45. Rh7 {[%clk 0:00:05]}  Ra2 {[%clk 0:00:25]} 46. Rh6+ {[%clk 0:00:05]}  Kg7 {[%clk 0:00:25]} 47. Rxe6 {[%clk 0:00:05]}  Rxf2+ {[%clk 0:00:26]} 48. Kg1 {[%clk 0:00:06]}  Kf7 {[%clk 0:00:21]} 49. Rd6 {[%clk 0:00:06]}  Rb2 {[%clk 0:00:16]} 50. Nxf5 {[%clk 0:00:06]}  Ne5 {[%clk 0:00:17]} 51. Nd4 {[%clk 0:00:05]}  Nf3+ {[%clk 0:00:16]} 52. Nxf3 {[%clk 0:00:06]}  gxf3 {[%clk 0:00:17]} 53. Rd4 {[%clk 0:00:06]}  Rg2+ {[%clk 0:00:17]} 54. Kf1 {[%clk 0:00:06]}  Rxg3 {[%clk 0:00:18]} 55. Kf2 {[%clk 0:00:07]}  Rh3 {[%clk 0:00:18]} 56. Rf4+ {[%clk 0:00:08]}  Ke6 {[%clk 0:00:18]} 57. Rxf3 {[%clk 0:00:09]}  Rxf3+ {[%clk 0:00:19]} 58. Kxf3 {[%clk 0:00:10]}  Kf5 {[%clk 0:00:20]} 59. e4+ {[%clk 0:00:11]}  Ke5 {[%clk 0:00:21]} 60. Ke3 {[%clk 0:00:12]}  Ke6 {[%clk 0:00:21]} 61. Kd4 {[%clk 0:00:12]}  Kf6 {[%clk 0:00:22]} 62. e5+ {[%clk 0:00:13]}  Ke6 {[%clk 0:00:22]} 63. Ke4 {[%clk 0:00:14]}  Ke7 {[%clk 0:00:23]} 64. Kd5 {[%clk 0:00:15]}  Kd7 {[%clk 0:00:23]} 65. Ke4 {[%clk 0:00:16]}  Ke6 {[%clk 0:00:23]} 66. Kf4 {[%clk 0:00:17]}  Ke7 {[%clk 0:00:23]} 67. Kf5 {[%clk 0:00:18]}  Kf7 {[%clk 0:00:24]} 68. e6+ {[%clk 0:00:18]}  Ke7 {[%clk 0:00:24]} 69. Ke5 {[%clk 0:00:19]}  Ke8 {[%clk 0:00:24]} 70. Kd5 {[%clk 0:00:19]}  Ke7 {[%clk 0:00:25]} 71. Ke5 {[%clk 0:00:20]}  Ke8 {[%clk 0:00:25]} 72. Kf4 {[%clk 0:00:20]}  Ke7 {[%clk 0:00:25]} 73. Kf5 {[%clk 0:00:21]}  Ke8 {[%clk 0:00:25]} 74. Kf6 {[%clk 0:00:22]}  Kf8 {[%clk 0:00:25]} 75. Ke5 {[%clk 0:00:22]}  Ke7 {[%clk 0:00:26]} 76. Kd5 {[%clk 0:00:23]}  Ke8 {[%clk 0:00:26]} 77. Kd6 {[%clk 0:00:24]}  Kd8 {[%clk 0:00:26]} 78. e7+ {[%clk 0:00:25]}  Ke8 {[%clk 0:00:26]} 79. Ke6 {[%clk 0:00:26]} 1/2-1/2


[Site "https://www.chess.com"]